{"text_format":"3","workbook":"xlsx","n_sheets":1,"sheets":["Biznesa uzsākšanas izmaksas"],"not_rendered":{"defined_names":1},"read":"whole","date_system":"1900"}

{"sheet":"Biznesa uzsākšanas izmaksas","index":0,"n_rows":120,"n_cols":4,"rows_kept":120,"merged":[[1,1,1,3],[10,1,10,3],[17,1,17,3],[25,1,25,3],[34,1,34,3],[42,1,42,3],[50,1,50,3],[55,1,55,3],[57,1,57,3],[59,1,59,3],[60,1,60,3],[69,1,69,3],[76,1,76,3],[81,1,81,3],[82,1,82,3],[90,1,90,3],[102,1,102,3],[110,1,110,3],[115,1,115,3]]}
["BIZNESA UZSĀKŠANAS IZMAKSAS",null,null,"UZŅĒMUMA NOSAUKUMS"]
[null,"ŅEMIET VĒRĀ, PIRMS IZMANTOT ŠO DARBLAPU\nGandrīz katrs jaunais uzņēmējs pirms uzņēmējdarbības uzsākšanas ir nepareizi aprēķinājis izmaksas, vēlāk saskaroties ar risku, ko rada nepietiekamas kapitāla rezerves. Lai izvairītos no šādas kļūdas, jums ir jāievieš rūpīga pieeja izpētes un plānošanas darbu veikšanai. Mūsu biznesa uzsākšanas izmaksas veidne sniegs jums norādījumus šajā procesā.\n\nSĀCIET AR IZMAKSU APRĒĶINĀŠANU\nCik izmaksās jūsu uzņēmuma darbības uzsākšana? Šajā jautājumā ir būtiski pievērst uzmanību detaļām. Katrā izdevumu kategorijā izveidojiet sarakstu ar visu nepieciešamo, kas būs jāiegādājas. Tas ietver gan pamatlīdzekļus (piemēram, aprīkojumu, inventāru), gan pakalpojumus (piemēram, remontdarbus, apdrošināšanu). Pēc tam nosakiet, kur var iegādāties šīs preces vai pakalpojumus. Izvērtējiet vairāk nekā vienu piegādātāju, piemēram, salīdziniet veikalus. Neņemiet vērā tikai cenu, jo svarīgi ir maksājuma nosacījumi, piegāde, uzticamība un apkalpošana. "]
[]
[null,"BIZNESA UZSĀKŠANAS IZMAKSAS"]
[null,"ĒKAS/NEKUSTAMAIS ĪPAŠUMS"," ","SUMMA"]
[null,"Iegāde",null,{"v":0,"d":"0.00 EUR"}]
[null,"Būvdarbi",null,{"v":0,"d":"0.00 EUR"}]
[null,"Pārbūve",null,{"v":0,"d":"0.00 EUR"}]
[null,"Citi",null,{"v":0,"d":"0.00 EUR"}]
[null,"Kopsumma",null,{"$f":"SUBTOTAL(109,RealEstate[SUMMA])","v":{"v":0,"d":"0.00 EUR"}}]
[]
[null,"UZLABOJUMI NOMNIEKAM"," ","SUMMA"]
[null,"1. vienums",null,{"v":0,"d":"0.00 EUR"}]
[null,"2. vienums",null,{"v":0,"d":"0.00 EUR"}]
[null,"3. vienums",null,{"v":0,"d":"0.00 EUR"}]
[null,"4. vienums",null,{"v":0,"d":"0.00 EUR"}]
[null,"Kopā",null,{"$f":"SUBTOTAL(109,Improvements[SUMMA])","v":{"v":0,"d":"0.00 EUR"}}]
[]
[null,"PAMATLĪDZEKĻU SARAKSTS"," ","SUMMA"]
[null,"Mēbeles",null,{"v":0,"d":"0.00 EUR"}]
[null,"Aprīkojums",null,{"v":0,"d":"0.00 EUR"}]
[null,"Kustamais īpašums",null,{"v":0,"d":"0.00 EUR"}]
[null,"Iekārtas",null,{"v":0,"d":"0.00 EUR"}]
[null,"Citi",null,{"v":0,"d":"0.00 EUR"}]
[null,"Kopsumma",null,{"$f":"SUBTOTAL(109,Capital[SUMMA])","v":{"v":0,"d":"0.00 EUR"}}]
[]
[null,"ATRAŠANĀS VIETAS UN PĀRVALDĪBAS IZMAKSAS"," ","SUMMA"]
[null,"Noma",null,{"v":0,"d":"0.00 EUR"}]
[null,"Komunālie maksājumi",null,{"v":0,"d":"0.00 EUR"}]
[null,"Juridisko pakalpojumu un grāmatvedības izmaksas",null,{"v":0,"d":"0.00 EUR"}]
[null,"Apdrošināšanas priekšapmaksa",null,{"v":0,"d":"0.00 EUR"}]
[null,"Sākotnējās algas ",null,{"v":0,"d":"0.00 EUR"}]
[null,"Citi",null,{"v":0,"d":"0.00 EUR"}]
[null,"Kopsumma",null,{"$f":"SUBTOTAL(109,AdminExpenses[SUMMA])","v":{"v":0,"d":"0.00 EUR"}}]
[]
[null,"SĀKOTNĒJAIS INVENTĀRS"," ","SUMMA"]
[null,"1. kategorija",null,{"v":0,"d":"0.00 EUR"}]
[null,"2. kategorija",null,{"v":0,"d":"0.00 EUR"}]
[null,"3. kategorija",null,{"v":0,"d":"0.00 EUR"}]
[null,"4. kategorija",null,{"v":0,"d":"0.00 EUR"}]
[null,"5. kategorija",null,{"v":0,"d":"0.00 EUR"}]
[null,"Kopsumma",null,{"$f":"SUBTOTAL(109,OpeningInventory[SUMMA])","v":{"v":0,"d":"0.00 EUR"}}]
[]
[null,"REKLĀMAS UN AKCIJU IZMAKSAS"," ","SUMMA"]
[null,"Reklamēšana",null,{"v":0,"d":"0.00 EUR"}]
[null,"Izkārtnes",null,{"v":0,"d":"0.00 EUR"}]
[null,"Drukāšana",null,{"v":0,"d":"0.00 EUR"}]
[null,"Ceļojumi/izklaide",null,{"v":0,"d":"0.00 EUR"}]
[null,"Citi/papildu kategorijas",null,{"v":0,"d":"0.00 EUR"}]
[null,"Kopsumma",null,{"$f":"SUBTOTAL(109,PromoExpenses[SUMMA])","v":{"v":0,"d":"0.00 EUR"}}]
[]
[null,"CITI IZDEVUMI"," ","SUMMA"]
[null,"Citi izdevumi 1",null,{"v":0,"d":"0.00 EUR"}]
[null,"Citi izdevumi 2",null,{"v":0,"d":"0.00 EUR"}]
[null,"Kopsumma",null,{"$f":"SUBTOTAL(109,OtherExpenses[SUMMA])","v":{"v":0,"d":"0.00 EUR"}}]
[]
[null,"Rezerve neparedzētiem gadījumiem",null,{"v":0,"d":"0.00 EUR"}]
[]
[null,"Funkcionālais budžets ",null,{"v":0,"d":"0.00 EUR"}]
[]
[null,"PIEVIENOJIET REZERVI NEPAREDZĒTIEM GADĪJUMIEM\nNoteikti izskaidrojiet, kā esat aprēķinājis rezervei paredzēto summu. \n\nNOSAKIET SAVU NAUDAS PLŪSMU\nNevarat atvērt uzņēmumu ar tukšu bankas kontu. Jums nepieciešami naudas uzkrājumi, lai nosegtu izdevumus uzņēmuma sākuma periodā. Iespējams, jums jāizveido naudas plūsmas prognoze 12 mēnešiem. Šādi varēsit aprēķināt funkcionālā budžeta vajadzības. Pagaidām atstājiet šo rindiņu tukšu vai ierakstiet aptuvenu summu. Kad esat izpildījis naudas plūsmas aprēķinus, varat atgriezties un ievadīt izpētīto summu.\n\nIEVADIET SAVUS KAPITĀLA AVOTUS\nKad esat aprēķinājis sākuma kapitālu, pievērsiet uzmanību šīs darblapas augšpusei. Ievadiet summu, ko ieguldīsit pats, cik lieli būs partneru vai investoru ieguldījumi, un cik daudz plānojat aizņemties."]
[]
[null,"KAPITĀLA AVOTI"]
[null,"ĪPAŠNIEKU IEGULDĪJUMS (VĀRDS UN ĪPAŠUMA DAĻA %)"," ","SUMMA"]
[null,"Jūsu vārds un procentuālā īpašuma daļa",null,{"v":0,"d":"0.00 EUR"}]
[null,"Cits investors",null,{"v":0,"d":"0.00 EUR"}]
[null,"Cits investors",null,{"v":0,"d":"0.00 EUR"}]
[null,"Cits investors",null,{"v":0,"d":"0.00 EUR"}]
[null,"Kopsumma",null,{"$f":"SUBTOTAL(109,OwnersInvestments[SUMMA])","v":{"v":0,"d":"0.00 EUR"}}]
[]
[null,"BANKAS AIZDEVUMI"," ","SUMMA"]
[null,"Banka 1",null,{"v":0,"d":"0.00 EUR"}]
[null,"Banka 2",null,{"v":0,"d":"0.00 EUR"}]
[null,"Banka 3",null,{"v":0,"d":"0.00 EUR"}]
[null,"Banka 4",null,{"v":0,"d":"0.00 EUR"}]
[null,"Kopā",null,{"$f":"SUBTOTAL(109,BankLoans[SUMMA])","v":{"v":0,"d":"0.00 EUR"}}]
[]
[null,"CITI AIZDEVUMI"," ","SUMMA"]
[null,"Avots 1",null,{"v":0,"d":"0.00 EUR"}]
[null,"Avots 2",null,{"v":0,"d":"0.00 EUR"}]
[null,"Kopsumma",null,{"$f":"SUBTOTAL(109,OtherLoans[SUMMA])","v":{"v":0,"d":"0.00 EUR"}}]
[]
[null,"GALVOJUMA APLIECINĀJUMS\nJa izmantosit šo plānu iesniegšanai kopā ar bankas aizdevuma pieprasījumu, izmantojiet apakšējo sadaļu, lai uzrādītu, kādi līdzekļi tiek piedāvāti kā galvojums, lai saņemtu aizdevumu, un norādiet aptuveno vērtību. Esiet gatavs uzrādīt apliecinājumus jūsu aprēķinātajai galvojuma vērtībai."]
[]
[null,"KOPSAVILKUMS"]
[null,"KAPITĀLA AVOTS"," ","KOPSUMMAS"]
[null,"Īpašnieku un citas investīcijas",null,{"$f":"OwnersInvestments[[#Totals],[SUMMA]]","v":{"v":0,"d":"0.00 EUR"}}]
[null,"Bankas aizdevumi",null,{"$f":"BankLoans[[#Totals],[SUMMA]]","v":{"v":0,"d":"0.00 EUR"}}]
[null,"Citi aizņēmumi",null,{"$f":"OtherLoans[[#Totals],[SUMMA]]","v":{"v":0,"d":"0.00 EUR"}}]
[null,"Kopsumma",null,{"$f":"SUBTOTAL(109,CapitalSources[KOPSUMMAS])","v":{"v":0,"d":"0.00 EUR"}}]
[]
[null,"BIZNESA UZSĀKŠANAS IZMAKSAS"," ","KOPSUMMAS"]
[null,"Ēkas/nekustamais īpašums",null,{"$f":"RealEstate[[#Totals],[SUMMA]]","v":{"v":0,"d":"0.00 EUR"}}]
[null,"Uzlabojumi nomniekam",null,{"$f":"Improvements[[#Totals],[SUMMA]]","v":{"v":0,"d":"0.00 EUR"}}]
[null,"Pamatlīdzekļu saraksts",null,{"$f":"Capital[[#Totals],[SUMMA]]","v":{"v":0,"d":"0.00 EUR"}}]
[null,"Atrašanās vietas/pārvaldības izmaksas",null,{"$f":"AdminExpenses[[#Totals],[SUMMA]]","v":{"v":0,"d":"0.00 EUR"}}]
[null,"Sākotnējais inventārs",null,{"$f":"OpeningInventory[[#Totals],[SUMMA]]","v":{"v":0,"d":"0.00 EUR"}}]
[null,"Reklāmas un akciju izdevumi",null,{"$f":"PromoExpenses[[#Totals],[SUMMA]]","v":{"v":0,"d":"0.00 EUR"}}]
[null,"Citi izdevumi",null,{"$f":"OtherExpenses[[#Totals],[SUMMA]]","v":{"v":0,"d":"0.00 EUR"}}]
[null,"Līdzekļi neparedzētiem gadījumiem",null,{"$f":"SUM('Biznesa uzsākšanas izmaksas'!$C$57)","v":{"v":0,"d":"0.00 EUR"}}]
[null,"Funkcionālais budžets",null,{"$f":"SUM('Biznesa uzsākšanas izmaksas'!$C$59)","v":{"v":0,"d":"0.00 EUR"}}]
[null,"Kopsumma",null,{"$f":"SUBTOTAL(109,StartupExpenses[KOPSUMMAS])","v":{"v":0,"d":"0.00 EUR"}}]
[]
[null,"NODROŠINĀJUMS UN GALVOJUMS AIZDEVUMA PIEDĀVĀJUMAM"]
[null,"AIZDEVUMU NODROŠINĀJUMS","APRAKSTS","VĒRTĪBA"]
[null,"Nekustamais īpašums",null,{"v":0,"d":"0.00 EUR"}]
[null,"Cits nodrošinājuma",null,{"v":0,"d":"0.00 EUR"}]
[null,"Cits nodrošinājuma",null,{"v":0,"d":"0.00 EUR"}]
[null,"Cits nodrošinājuma",null,{"v":0,"d":"0.00 EUR"}]
[null,"Kopsumma",null,{"$f":"SUBTOTAL(109,Collateral[VĒRTĪBA])","v":{"v":0,"d":"0.00 EUR"}}]
[]
[null,"ĪPAŠNIEKI"," ","  "]
[null,"Norādiet savu vārdu"]
[null,"Cits īpašnieks"]
[null,"Cits īpašnieks"]
[]
[null,"AIZDEVUMA GALVOTĀJI (IZŅEMOT ĪPAŠNIEKUS)"," ","  "]
[null,"Aizdevuma galvotājs 1"]
[null,"Aizdevuma galvotājs 2"]
[null,"Aizdevuma galvotājs 3"]